[Event "French-ch U16-U18 2024"]
[Site "Agen"]
[Date "2024.04.19"]
[Round "7.6"]
[White "Breuil, Tristan"]
[Black "Vallee, Louis"]
[Result "1-0"]
[ECO "B36"]
[WhiteElo "2281"]
[BlackElo "2270"]
[Annotator "TA"]
[PlyCount "111"]
[EventDate "2024.04.14"]
[EventType "swiss"]
[EventCountry "FRA"]
[SourceTitle "playchess.com"]
[Source "ChessBase"]
[SourceQuality "1"]
[TimeControl "5400+30"]

{[%evp 18,111,32,36,70,56,69,65,59,64,62,66,61,41,72,67,60,45,72,70,84,60,70,74,79,77,100,88,86,81,247,166,237,242,362,256,237,204,198,209,216,216,215,127,121,87,87,68,70,70,72,64,433,422,863,815,1091,881,1505,943,1749,1101,4134,2488,4543,4133,29968,29968,29967,29966,29970,29971,29972,29973,29973,29974,29974,29975,29975,29976,29976,29976,29977,29978,29978,29978,29978,29979,29979,29979,29979,29980,29980,29981,29984,29983]} 1. e4 {[%emt 0:00:48]} c5 {[%emt 0:00:14]} 2. Nf3 {[%emt 0:00:12]} Nc6 {[%emt 0:00:23]} 3. d4 {[%emt 0:00:04]} cxd4 {[%emt 0:00:07]} 4. Nxd4 {[%emt 0:00:07]} g6 {[%emt 0:00:08]} 5. c4 {[%emt 0:00:04]} Nf6 {[%emt 0:00:17]} 6. Nc3 {[%emt 0:00:18][%cal Bb1c3,Bc3a4,Ba4b6][%mdl 32]} Nxd4 {[%emt 0:00:28]} 7. Qxd4 {[%emt 0:00:08]} d6 {[%emt 0:00:07]} 8. f3 {[%emt 0:00:33]} Bg7 {[%emt 0:00:12]} 9. Be3 {[%emt 0:00:09]} O-O {[%emt 0:00:09]} 10. Qd2 {[%emt 0:00:08]} a5 {[%emt 0:00:29]} 11. Na4 {[%emt 0:00:32]} Be6 {[%emt 0:02:40]} 12. Nb6 {[%emt 0:00:52] Inhibits Nd7.} Rb8 {[%emt 0:00:11] White is slightly better.} 13. Qxa5 {[%emt 0:00:12]} Nd7 {[%emt 0:00:37][%cal Bf6d7,Bd7c5,Bc5d3][%mdl 32]} 14. Qb4 {[%emt 0:01:37] White is more active.} f5 {[%emt 0:00:15]} 15. Bd3 {[%emt 0:00:21]} Nc5 {[%emt 0:24:09]} 16. O-O-O {[%emt 0:06:24]} Nxd3+ {[%emt 0:13:11]} 17. Rxd3 {[%emt 0:00:28]} fxe4 {[%emt 0:00:35]} 18. fxe4 {[%emt 0:00:04]} Qc7 {[%emt 0:05:33][%cal Oe6c4]} 19. Bd4 {[%emt 0:02:30]} Bxd4 {[%emt 0:06:36]} 20. Rxd4 {[%emt 0:00:14]} Rf2 {[%emt 0:00:33]} 21. Rd2 {[%emt 0:00:29]} Rxd2 {[%emt 0:03:29]} 22. Kxd2 {[%emt 0:00:13]} Rf8 {[%emt 0:05:12] Repels Rf1} 23. Re1 {[%emt 0:01:08]} d5 $2 {[%emt 0:08:35]} 24. Nxd5 {[%emt 0:25:20]} Bxd5 {[%emt 0:00:44]} (24... Qxh2 $142 25. Nxe7+ (25. Qxe7 Qe5 $18) 25... Kg7) 25. exd5 $18 {[%emt 0:00:51][%mdl 4096] Endgame. KQR-KQR} (25. cxd5 $6 Rc8 $14) 25... Qf4+ {[%emt 0:03:38]} (25... Rf2+ {was necessary.} 26. Kd3 Kf7) 26. Kc2 {[%emt 0:04:26]} b5 {[%emt 0:00:40]} 27. Kb1 {[%emt 0:12:15] a4 is the strong threat.} (27. Qxb5 Qf2+ 28. Kd1 Qd4+ 29. Kc1 Qf4+ 30. Kb1 Qd2 $11) 27... bxc4 {[%emt 0:01:05]} 28. Qxe7 {[%emt 0:03:25]} ({Weaker is} 28. Rxe7 Qf5+ 29. Ka1 Qxd5 $11) 28... Qf5+ {[%emt 0:01:42]} 29. Kc1 {[%emt 0:02:49] And now Qe6+ would win.} ({Not} 29. Qe4 $2 Re8 30. Qxf5 Rxe1+ 31. Kc2 gxf5 $19) 29... Qxd5 {[%emt 0:05:01] [#]} 30. Qe6+ {[%emt 0:04:44]} (30. Qe4 $1 $18 {[%cal Re4d5]} Qb5 31. Rd1) 30... Qxe6 $16 {[%emt 0:00:03]} 31. Rxe6 {[%emt 0:00:01] KR-KR} Rf2 {[%emt 0:00:17]} 32. Rd6 {[%emt 0:07:08] Prevents c3. Strongly threatening Rd2.} Rxg2 {[%emt 0:02:28]} 33. Rd2 $1 {[%emt 0:00:18]} Rg1+ {[%emt 0:06:50]} 34. Kc2 {[%emt 0:00:12] [#] Black must now prevent Kc3.} g5 $2 {[%emt 0:00:34][%mdl 8192] White now steadily converts the win.} (34... Kf7 $14) 35. Kc3 $18 {[%emt 0:03:22]} h5 {[%emt 0:03:58]} (35... Rc1+ $142 36. Rc2 Ra1) 36. Kxc4 {[%emt 0:01:25]} h4 {[%emt 0:00:09][%cal Bh5h4,Bh4h3][%mdl 32]} 37. b4 {[%emt 0:03:37]} g4 {[%emt 0:00:42]} 38. a4 {[%emt 0:03:53][%cal Ba2a4,Ba4a5][%mdl 32] Hoping for a5.} h3 {[%emt 0:01:30]} 39. a5 {[%emt 0:02:02] Threatens to win with a6.} g3 {[%emt 0:03:28]} 40. hxg3 {[%emt 0:01:32]} Rg2 {[%emt 0:00:53]} 41. Rd4 {[%emt 0:02:14]} Rxg3 {[%emt 0:00:11]} 42. a6 {[%emt 0:04:03] White mates.} Ra3 {[%emt 0:01:50]} 43. Rh4 {[%emt 0:00:35]} Rxa6 {[%emt 0:00:30]} 44. Rxh3 {[%emt 0:00:10]} Kf7 {[%emt 0:00:27]} 45. Re3 {[%emt 0:00:12]} Rc6+ {[%emt 0:00:31]} 46. Kd5 {[%emt 0:02:27]} Rb6 {[%emt 0:00:14]} 47. Kc5 {[%emt 0:00:09]} Rb8 {[%emt 0:00:50]} 48. b5 {[%emt 0:00:24][%cal Bb4b5,Bb5b6,Bb6b7][%mdl 32]} Rc8+ {[%emt 0:00:06]} 49. Kb6 {[%emt 0:00:07]} Rb8+ {[%emt 0:00:07]} 50. Kc6 {[%emt 0:00:07]} Rc8+ {[%emt 0:00:05]} 51. Kb7 {[%emt 0:00:07]} Rc1 {[%emt 0:00:06]} 52. b6 {[%emt 0:00:07]} Rb1 {[%emt 0:00:04]} 53. Kc7 {[%emt 0:00:04]} Rc1+ {[%emt 0:00:05]} 54. Kb8 {[%emt 0:00:04]} Rb1 {[%emt 0:00:06]} 55. b7 {[%emt 0:00:03]} Rc1 {[%emt 0:00:14]} 56. Ra3 {[%emt 0:01:18] Weighted Error Value: White=0.13 (very precise) /Black=0.40.  Loses game:     	---       	Black=2      Mistake:       	White=1     	Black=3      Inaccurate:     	White=1     	Black=2      OK:         	White=6     	Black=12     Best:        	White=5     	Black=2      Strong:       	White=1     	---} 1-0

[Event "French-ch U16-U18 2024"]
[Site "Agen"]
[Date "2024.04.19"]
[Round "7.7"]
[White "Kuhn, Clement"]
[Black "Dessyn, Timothee"]
[Result "1/2-1/2"]
[ECO "D27"]
[WhiteElo "2349"]
[BlackElo "2110"]
[Annotator "TA"]
[PlyCount "136"]
[EventDate "2024.04.14"]
[EventType "swiss"]
[EventCountry "FRA"]
[SourceTitle "playchess.com"]
[Source "ChessBase"]
[SourceQuality "1"]
[TimeControl "5400+30"]

{[%evp 60,136,0,0,0,0,20,12,22,18,25,-10,-10,-10,-14,-61,-46,-63,-74,-59,-59,-59,-59,-86,-86,-147,-147,-158,-20,-20,-24,-464,-461,-385,-253,-592,-592,-558,-372,-523,-495,-1153,-1122,-1173,-1093,-1133,-1120,-1045,0,0,0,0,0,0,0,0,0,0,0,0,0,0,8,8,8,8,8,8,8,8,8,8,8,8,8,8,8,8,8]} 1. d4 {[%emt 0:00:15]} d5 {[%emt 0:00:06]} 2. c4 {[%emt 0:00:44]} dxc4 {[%emt 0:00:06]} 3. e3 {[%emt 0:02:13]} Nf6 {[%emt 0:00:06]} 4. Bxc4 {[%emt 0:00:07]} e6 {[%emt 0:00:04]} 5. Nf3 {[%emt 0:00:06]} a6 {[%emt 0:00:04]} 6. O-O {[%emt 0:01:16]} c5 {[%emt 0:00:04]} 7. dxc5 {[%emt 0:05:13] 7.b3 deserves study.} Bxc5 {[%emt 0:00:56]} 8. Qxd8+ {[%emt 0:00:59]} Kxd8 {[%emt 0:00:06]} 9. Ne5 {[%emt 0:04:50] D27: Queen's Gambit Accepted: Classical main line: 7 e4!? and 7 a4.} Ke7 {[%emt 0:01:04]} 10. Be2 {[%emt 0:00:07]} Nbd7 {[%emt 0:10:49]} 11. Nc4 {[%emt 0:03:16]} Re8 $146 {[%emt 0:22:11]} ({Predecessor:} 11... b6 12. Nc3 a5 13. Na4 Ba6 14. Nxc5 bxc5 15. b3 a4 16. Ba3 Rhb8 17. Rfc1 axb3 18. axb3 Rxb3 19. Nd2 Rbb8 20. Bf3 Nd5 21. Bxc5+ Nxc5 22. Rxc5 Bd3 23. Rxa8 {½-½ Radjabov,T (2747)-Vallejo Pons,F (2710) Krasnogorsk Rapid 2023 (2)}) 12. Nbd2 {[%emt 0:05:04]} Kf8 {[%emt 0:07:53]} 13. Nb3 {[%emt 0:03:04]} Be7 {[%emt 0:03:34]} 14. Rd1 {[%emt 0:06:28]} Nc5 {[%emt 0:04:20]} 15. Nxc5 {[%emt 0:16:13]} Bxc5 {[%emt 0:00:06]} 16. Bd2 {[%emt 0:00:05]} Bd7 {[%emt 0:11:16]} 17. Bf3 {[%emt 0:00:41]} Rab8 {[%emt 0:13:36]} 18. Rac1 {[%emt 0:05:24]} Ba4 {[%emt 0:06:04]} 19. b3 {[%emt 0:00:35]} Bb5 {[%emt 0:00:03]} 20. a4 {[%emt 0:08:48]} Bxc4 {[%emt 0:02:55]} 21. Rxc4 {[%emt 0:00:25]} Be7 {[%emt 0:00:42]} 22. Be1 {[%emt 0:04:51]} b5 {[%emt 0:03:44]} 23. axb5 {[%emt 0:12:18]} axb5 {[%emt 0:00:10]} 24. Rc7 {[%emt 0:00:26]} Rec8 {[%emt 0:04:28]} 25. Ra7 {[%emt 0:04:38]} Rc2 {[%emt 0:01:33]} 26. g4 {[%emt 0:01:12]} h6 {[%emt 0:00:34]} 27. Kg2 {[%emt 0:00:14]} e5 {[%emt 0:00:49]} 28. Kf1 {[%emt 0:08:36]} e4 {[%emt 0:03:20]} 29. Bg2 {[%emt 0:00:01]} b4 {[%emt 0:01:01]} 30. Rd4 {[%emt 0:02:58]} Rb2 {[%emt 0:00:13]} 31. Rc4 {[%emt 0:00:39]} (31. Bxe4 $2 Bc5 (31... Rxb3 32. Rb7 $15) 32. Bxb4 Bxb4 $19) 31... Bd6 {[%emt 0:01:19]} (31... Nxg4 32. Rxe4 (32. Bxe4 Nxh2+ 33. Kg1 Ng4 $16) 32... Bc5 (32... Nxh2+ $2 33. Kg1 $18) 33. Ra5 $16) 32. Bxe4 {[%emt 0:01:34]} Nxe4 {[%emt 0:00:04]} 33. Rxe4 {[%emt 0:00:03]} Rxb3 {[%emt 0:00:12]} 34. Rd7 $1 {[%emt 0:00:04]} Bc5 $1 {[%emt 0:01:52]} (34... Bxh2 35. Kg2 $16) 35. Rc4 {[%emt 0:00:01]} Be7 {[%emt 0:00:19]} 36. Rcc7 {[%emt 0:00:38]} Bf6 {[%emt 0:00:04]} 37. Rxf7+ {[%emt 0:00:10]} (37. Rb7 $11 {was preferrable.} Rxb7 38. Rxb7) 37... Kg8 $15 {[%emt 0:00:15]} 38. Rb7 {[%emt 0:01:12]} Rxb7 {[%emt 0:00:38]} 39. Rxb7 {[%emt 0:00:01]} Rb1 $1 {[%emt 0:00:07]} 40. Ke2 {[%emt 0:01:18]} b3 {[%emt 0:00:01]} 41. Rb8+ {[%emt 0:01:40]} Kh7 {[%emt 0:01:08]} 42. f4 {[%emt 0:01:21]} (42. h4 $142) 42... b2 $17 {[%emt 0:01:20]} 43. e4 {[%emt 0:01:19]} Bd4 {[%emt 0:00:52]} ({Black should try} 43... Rc1 $17 44. e5 Bxe5 (44... b1=B $2 45. exf6 gxf6 46. Kd2 $18) (44... b1=Q 45. Rxb1 Rxb1 46. exf6 $17) 45. fxe5 b1=Q (45... b1=B $2 46. Kd2 $18) 46. Rxb1 Rxb1) 44. Bd2 $1 $11 {[%emt 0:00:35]} (44. Bf2 $2 Bxf2 45. Kd3 (45. Kxf2 $2 Rh1 $19) 45... Be3 $19) 44... Rh1 {[%emt 0:00:54]} (44... Ra1 $5 45. Kd3 $8 b1=R 46. Rxb1 Rxb1 47. Kxd4 Rh1 $19) 45. Be1 $2 {[%emt 0:00:25][%mdl 8192] [#]} (45. Kd3 $11) 45... g5 $1 $19 {[%emt 0:00:57]} (45... Rxh2+ $2 46. Kd3 Ba7 47. Rb7 $17) 46. Rb7+ {[%emt 0:00:11]} Kg6 {[%emt 0:01:31]} 47. f5+ $2 {[%emt 0:00:14]} (47. Kd3 {was the crucial defense.} Bg7 (47... Rxe1 48. Kxd4 gxf4 49. Rxb2 $11) 48. f5+ Kh7 49. e5 Rxe1 50. Rxb2 Rxe5 (50... Bxe5 $2 51. Rb7+ Kg8 52. Re7 $19) 51. Rb3) 47... Kf6 $19 {[%emt 0:00:00]} 48. Rb5 {[%emt 0:00:42]} Be5 {[%emt 0:00:15]} 49. Rb6+ {[%emt 0:00:16]} (49. Rb7 {only move.} Rxh2+ (49... Bxh2 $2 {loses.} 50. Rxb2 Be5 51. Rb6+ Kf7 52. Rb5 $18) 50. Kd3) 49... Ke7 {[%emt 0:00:20]} 50. Bb4+ {[%emt 0:00:52]} (50. Rb5 $142 Kd7 (50... Bxh2 $2 {perishes.} 51. Rxb2 Be5 52. Rb5 $18) (50... Rxh2+ $2 51. Kd3 $19) 51. Rd5+ Kc6 52. Rd1) 50... Kd7 $19 {[%emt 0:00:18]} 51. Be1 {[%emt 0:00:04]} Rxh2+ {[%emt 0:00:13]} 52. Kd3 {[%emt 0:00:07]} Rh1 {[%emt 0:00:08]} 53. Ke2 {[%emt 0:00:29] [#]} Bc3 $2 {[%emt 0:00:15]} (53... Bd4 $1 $19 {[%mdl 512]} 54. Rb8 (54. Rb3 Rh3) 54... Kc6) 54. Bxc3 $11 {[%emt 0:00:16]} b1=Q {[%emt 0:00:02]} 55. Rxb1 {[%emt 0:00:07]} Rxb1 {[%emt 0:00:10]} 56. e5 {[%emt 0:00:40]} Rg1 {[%emt 0:01:23]} 57. Kf3 {[%emt 0:00:21]} Rf1+ {[%emt 0:00:12]} 58. Kg3 {[%emt 0:01:00]} Rf4 {[%emt 0:00:34]} 59. e6+ {[%emt 0:00:28]} Ke7 {[%emt 0:00:44]} 60. Bg7 {[%emt 0:00:09]} h5 {[%emt 0:00:14]} 61. gxh5 {[%emt 0:00:37]} Rxf5 {[%emt 0:01:18]} 62. h6 {[%emt 0:00:04]} Ra5 {[%emt 0:00:09]} 63. h7 {[%emt 0:00:43]} Ra8 $1 {[%emt 0:00:01]} 64. Kg4 {[%emt 0:00:16]} Kxe6 {[%emt 0:00:06]} 65. Kxg5 {[%emt 0:00:15]} Kf7 {[%emt 0:00:03]} 66. Bc3 {[%emt 0:00:29]} Rc8 {[%emt 0:00:12]} (66... Ra5+ $5 67. Kg4 (67. Bxa5 Kg7 $11) 67... Ra4+ 68. Kh5 Ra2 $11) 67. Be5 {[%emt 0:00:25]} Re8 {[%emt 0:00:06]} 68. Bf6 {[%emt 0:01:08]} Ra8 {[%emt 0:00:01]} 1/2-1/2

[Event "French-ch U16-U18 2024"]
[Site "Agen"]
[Date "2024.04.19"]
[Round "7.8"]
[White "Gibaud, Elian"]
[Black "Trevisiol, Antoine"]
[Result "1-0"]
[ECO "B12"]
[WhiteElo "1985"]
[BlackElo "2235"]
[Annotator "TA"]
[PlyCount "123"]
[EventDate "2024.04.14"]
[EventType "swiss"]
[EventCountry "FRA"]
[SourceTitle "playchess.com"]
[Source "ChessBase"]
[SourceQuality "1"]
[TimeControl "5400+30"]

{[%evp 12,123,6,1,18,0,0,2,0,0,8,3,0,-5,18,16,29,27,23,9,0,-8,-5,-26,-39,-19,0,0,0,-24,0,0,-7,0,0,0,0,-64,-55,-46,-49,-53,-39,-83,-83,-83,-7,-5,-5,-5,-5,-83,-83,-83,-83,-83,-77,-83,-2,-2,-2,-2,-2,-2,-2,-9,-9,-9,0,0,0,0,0,0,0,0,214,214,214,214,257,254,962,230,1342,1217,29951,29954,29950,7181,4483,2295,29954,29951,29952,29952,29961,29963,29962,29955,29964,29964,29964,29964,29982,29983,29983,29984,29984,29985,29985,29986,29986,29987]} 1. e4 {[%emt 0:00:06]} c6 {[%emt 0:02:12]} 2. d4 {[%emt 0:00:44]} d5 {[%emt 0:00:11]} 3. e5 {[%emt 0:00:20]} Bf5 {[%emt 0:01:05]} 4. h4 {[%emt 0:00:31]} h5 {[%emt 0:00:13]} 5. Bd3 {[%emt 0:00:17]} Bxd3 {[%emt 0:00:26]} 6. Qxd3 {[%emt 0:00:10]} e6 {[%emt 0:01:52]} 7. Nf3 {[%emt 0:00:22]} Qa5+ {[%emt 0:00:52]} 8. Nbd2 {[%emt 0:00:20]} Qa6 {[%emt 0:00:37]} 9. c4 {[%emt 0:00:20]} Nh6 {[%emt 0:00:56] The position is equal.} 10. O-O {[%emt 0:00:39]} Be7 {[%emt 0:00:46]} 11. b3 {[%emt 0:01:05]} Nf5 {[%emt 0:00:59]} 12. a4 {[%emt 0:00:48]} b6 {[%emt 0:22:48]} 13. Ba3 {[%emt 0:07:03]} c5 {[%emt 0:01:40]} 14. Qb1 {[%emt 0:05:07] cxd5 is the strong threat.} Qb7 {[%emt 0:11:05]} 15. dxc5 {[%emt 0:19:48]} bxc5 {[%emt 0:01:09]} 16. cxd5 {[%emt 0:06:23]} Qxd5 {[%emt 0:00:16][%cal Ob8c6]} 17. Qe4 {[%emt 0:00:58]} O-O {[%emt 0:03:05]} 18. Rac1 $1 {[%emt 0:02:47]} Na6 {[%emt 0:04:51]} 19. Qc4 {[%emt 0:05:39]} Qb7 {[%emt 0:03:22]} 20. Ne4 {[%emt 0:03:09]} Rfd8 {[%emt 0:03:42]} 21. Nxc5 {[%emt 0:15:07]} Nxc5 {[%emt 0:02:49]} 22. Bxc5 {[%emt 0:00:13]} Bxc5 {[%emt 0:00:46]} (22... Rac8 $5 23. b4 $8 a5 $11) 23. Qxc5 {[%emt 0:00:10]} Qxb3 {[%emt 0:00:10]} 24. Qb5 {[%emt 0:03:28]} (24. Qc6 $11) 24... Qxb5 $1 $15 {[%emt 0:06:57]} 25. axb5 {[%emt 0:00:36]} Rd5 {[%emt 0:00:16]} 26. Rb1 {[%emt 0:09:54]} Rb8 {[%emt 0:00:37]} 27. Ra1 {[%emt 0:00:34] [#]} Rb7 $1 {[%emt 0:00:39]} (27... Rbxb5 28. Rxa7 Nh6 29. Ng5 $11) 28. Rfb1 {[%emt 0:00:20]} Nd4 {[%emt 0:05:59]} (28... Rdxb5 $6 29. Rxb5 Rxb5 30. Rxa7 $11) (28... Kh7 $17) 29. Nxd4 $11 {[%emt 0:02:23]} Rxd4 {[%emt 0:00:12][%mdl 4096] Endgame. KRR-KRR} 30. g3 {[%emt 0:00:50]} Rd5 {[%emt 0:01:19][%csl LRb5,LRe5]} 31. Ra6 {[%emt 0:06:39]} (31. f4 $11 {remains equal.}) 31... Rxe5 $17 {[%emt 0:03:10]} 32. b6 {[%emt 0:00:21]} axb6 {[%emt 0:00:47]} 33. Raxb6 {[%emt 0:00:12]} Rc7 {[%emt 0:00:39]} 34. R6b5 {[%emt 0:00:16]} Rd5 {[%emt 0:00:36]} (34... Rec5 $17) 35. Rxd5 $11 {[%emt 0:08:38]} exd5 {[%emt 0:00:09] KR-KR} 36. Rb8+ {[%emt 0:00:25]} Kh7 {[%emt 0:00:07]} 37. Rd8 {[%emt 0:00:08]} Rc5 {[%emt 0:00:14]} 38. Kg2 {[%emt 0:01:55]} Kg6 {[%emt 0:00:19]} 39. Rh8 $1 {[%emt 0:00:28]} Kf5 {[%emt 0:04:27]} 40. Rxh5+ {[%emt 0:00:31]} Ke4 {[%emt 0:00:10]} 41. Rh7 {[%emt 0:00:42]} d4 {[%emt 0:00:29][%cal Bd5d4,Bd4d3][%mdl 32] [#] aiming for ...d3.} 42. Rxg7 {[%emt 0:00:19]} f6 {[%emt 0:16:23]} (42... d3 $5 43. Rg4+ $8 (43. Rxf7 $2 d2 $19) 43... Ke5 $11) 43. Rd7 {[%emt 0:00:29]} Kd3 $2 {[%emt 0:01:08] White stays focused until the end.} (43... Rh5 $11) 44. g4 $18 {[%emt 0:00:26]} Ke4 {[%emt 0:01:19]} 45. h5 {[%emt 0:00:15] And now h6 would win.} d3 {[%emt 0:00:34]} 46. h6 {[%emt 0:00:33]} Rc8 $2 {[%emt 0:00:16]} (46... Kf4 47. h7 (47. Rxd3 Rc8 $18) 47... Rc8 48. Rxd3 Rh8) 47. h7 $2 {[%emt 0:00:34]} (47. Kg3 Rc1 48. h7) 47... Rh8 $2 {[%emt 0:00:20]} (47... Kf4 48. f3 (48. Rxd3 Rh8 $18) 48... f5 49. gxf5 (49. Rxd3 Rh8 $14) 49... Rh8) 48. Kg3 {[%emt 0:00:37]} d2 {[%emt 0:01:00]} 49. Rxd2 {[%emt 0:00:13]} Rxh7 {[%emt 0:00:03]} 50. Re2+ {[%emt 0:00:11]} (50. f3+ $142 Ke3 51. Rd6 Rc7 52. Rxf6 Rb7 53. f4 Ke2 54. Re6+ Kd3 55. f5) 50... Kd5 {[%emt 0:00:53]} 51. Kf4 {[%emt 0:00:28] Intending f3 and mate.} Rh3 {[%emt 0:00:29]} 52. Re3 {[%emt 0:00:39] White mates.} Rh2 {[%emt 0:00:28]} 53. f3 {[%emt 0:00:08][%cal Bf2f3,Bf3f4][%mdl 32]} Rh3 {[%emt 0:00:37]} 54. Kf5 {[%emt 0:00:13]} Kd4 {[%emt 0:00:21]} 55. Ra3 {[%emt 0:00:15]} Rh6 {[%emt 0:00:16]} 56. Ra6 {[%emt 0:00:29]} Ke3 {[%emt 0:00:26]} 57. f4 {[%emt 0:00:33]} Kf3 {[%emt 0:00:23]} 58. g5 {[%emt 0:00:21]} Rh5 {[%emt 0:00:45]} 59. Ra3+ {[%emt 0:00:11]} Kg2 {[%emt 0:00:14]} 60. Kxf6 {[%emt 0:00:09]} Rh8 {[%emt 0:00:21]} 61. g6 {[%emt 0:00:12]} Rf8+ {[%emt 0:00:06]} 62. Kg5 {[%emt 0:00:08] Weighted Error Value: White=0.21 (precise) /Black=0.41.  Loses game:     	---       	Black=1      Mistake:       	White=3     	Black=4      Inaccurate:     	White=1     	Black=1      OK:         	White=14    	Black=11     Best:        	White=5     	Black=3      Strong:       	White=2     	Black=2} 1-0

[Event "French-ch U16-U18 2024"]
[Site "Agen"]
[Date "2024.04.19"]
[Round "7.9"]
[White "Reymann, Nathan"]
[Black "Boumrar, Ayrad"]
[Result "0-1"]
[ECO "B40"]
[WhiteElo "1938"]
[BlackElo "2191"]
[Annotator "TA"]
[PlyCount "98"]
[EventDate "2024.04.14"]
[EventType "swiss"]
[EventCountry "FRA"]
[SourceTitle "playchess.com"]
[Source "ChessBase"]
[SourceQuality "1"]
[TimeControl "5400+30"]

{[%evp 9,98,0,0,0,0,-2,53,33,37,38,45,44,39,44,34,20,25,15,14,7,22,22,32,31,29,27,37,13,10,13,18,34,24,0,0,0,0,0,0,0,0,0,0,0,0,0,0,0,-9,-335,-325,-355,-355,-355,-355,-362,-362,-355,-355,-354,-354,-340,-340,-578,-578,-564,-564,-560,-504,-1000,-729,-964,-993,-799,-752,-1398,-1302,-1122,-1069,-29967,-29968,-29970,-29971,-29987,-29986,-29986,-29975,-29993,-29992,-29994,-295]} 1. e4 {[%emt 0:00:02]} c5 {[%emt 0:00:04]} 2. Nf3 {[%emt 0:00:04]} e6 {[%emt 0:00:04]} 3. d4 {[%emt 0:00:04]} cxd4 {[%emt 0:00:04]} 4. Qxd4 {[%emt 0:00:03]} Nc6 {[%emt 0:00:47]} 5. Qe3 {[%emt 0:00:43]} Nf6 {[%emt 0:01:39]} 6. Nc3 {[%emt 0:00:22]} Bb4 {[%emt 0:03:51]} 7. Bd2 {[%emt 0:00:56]} d5 {[%emt 0:06:37]} ({Black should play} 7... O-O $11) 8. exd5 $14 {[%emt 0:01:13] White is slightly better.} Nxd5 {[%emt 0:02:17]} 9. Nxd5 {[%emt 0:00:06]} Bxd2+ {[%emt 0:01:26]} 10. Qxd2 {[%emt 0:16:33]} exd5 {[%emt 0:02:16]} 11. Bd3 {[%emt 0:04:07]} Qe7+ {[%emt 0:01:11]} 12. Qe2 {[%emt 0:07:56]} Be6 {[%emt 0:01:17]} 13. O-O {[%emt 0:03:49]} O-O {[%emt 0:00:45]} 14. c3 {[%emt 0:02:22]} Rfe8 {[%emt 0:01:28]} 15. Rfe1 {[%emt 0:06:31]} Qf6 {[%emt 0:01:19]} 16. Rad1 {[%emt 0:18:29]} g6 {[%emt 0:03:18]} 17. Bb5 {[%emt 0:18:09]} Kg7 {[%emt 0:12:15]} 18. Rd3 {[%emt 0:07:00]} d4 {[%emt 0:11:55]} 19. Bxc6 {[%emt 0:03:14]} (19. Nxd4 Bc4 20. Bxc4 Rxe2 21. Nxe2 Ne5 $17) 19... bxc6 {[%emt 0:06:45]} 20. Rxd4 {[%emt 0:00:36]} (20. cxd4 $2 {loses.} Bc4 (20... Bxa2 21. Re3 $11) 21. Qd2 Rxe1+ 22. Nxe1 Bxd3 23. Qxd3 Re8 $19) 20... Bxa2 {[%emt 0:02:17]} 21. Qxe8 {[%emt 0:00:17]} Rxe8 {[%emt 0:00:05]} 22. Rxe8 {[%emt 0:00:10]} Bd5 {[%emt 0:03:41]} 23. Re3 {[%emt 0:02:51]} Qf5 {[%emt 0:01:07]} 24. Rd1 {[%emt 0:01:17] Dodges Qb1} Bxf3 {[%emt 0:08:25]} 25. Rxf3 $11 {[%emt 0:00:10][%mdl 4096] Endgame. KQ-KRR} Qc2 {[%emt 0:00:05][%csl LRb2,LRd1]} 26. Re1 {[%emt 0:00:13]} Qxb2 {[%emt 0:00:05]} 27. h3 {[%emt 0:00:35]} a5 {[%emt 0:01:04]} 28. c4 {[%emt 0:05:26]} a4 {[%emt 0:00:31]} 29. Rd3 {[%emt 0:01:10][%mdl 8192] [#] White does not recover from this.} (29. Rfe3 $11 {and White is okay.}) 29... a3 $19 {[%emt 0:00:49]} 30. Rdd1 {[%emt 0:00:15]} a2 {[%emt 0:00:05] Against Rb1} 31. c5 {[%emt 0:00:19]} Kf6 {[%emt 0:00:44]} 32. Rd6+ {[%emt 0:00:23]} Kf5 {[%emt 0:00:12]} ({Much less strong is} 32... Kg7 33. Rdd1 $19) 33. Rdd1 {[%emt 0:00:09]} h5 {[%emt 0:00:54]} 34. Rc1 {[%emt 0:00:40]} g5 {[%emt 0:00:24]} 35. Rcd1 {[%emt 0:00:48]} g4 {[%emt 0:00:35]} 36. hxg4+ $2 {[%emt 0:00:16]} (36. h4) 36... hxg4 {[%emt 0:00:10]} 37. g3 {[%emt 0:01:03]} Kg5 {[%emt 0:00:13]} 38. Rc1 {[%emt 0:00:31]} f5 {[%emt 0:00:44]} 39. Kg2 {[%emt 0:00:32]} (39. Ra1 $142) 39... f4 {[%emt 0:01:07] [#] Hoping for ...fxg3.} 40. gxf4+ {[%emt 0:00:07]} Kxf4 {[%emt 0:00:06]} 41. Rc4+ {[%emt 0:00:06]} Kg5 {[%emt 0:00:06][%cal Og4g3] ( -> ...g3!)} 42. Rcc1 {[%emt 0:00:23]} Qb3 {[%emt 0:04:04] ...Qf3+ is the strong threat.} 43. Re3 {[%emt 0:01:28]} Qd5+ {[%emt 0:00:25]} 44. Kg1 {[%emt 0:00:20]} Qd4 {[%emt 0:00:31] Black mates.} 45. Ree1 {[%emt 0:00:41]} g3 {[%emt 0:00:09]} 46. Rf1 {[%emt 0:00:21]} Kg4 {[%emt 0:04:29]} 47. Kg2 {[%emt 0:00:24]} gxf2 {[%emt 0:03:38]} 48. Ra1 {[%emt 0:00:36]} Qc3 {[%emt 0:02:19]} (48... Qxc5 49. Rxf2 Qd5+ 50. Kg1 $11) 49. Kxf2 {[%emt 0:00:35]} Qd2+ {[%emt 0:00:08] Weighted Error Value: White=0.55/Black=0.07 (flawless) .  Loses game:     	White=1     	---        Mistake:       	White=2     	Black=1      Inaccurate:     	White=1     	---        OK:         	White=11    	Black=13     Best:        	White=1     	Black=2} 0-1